Workbook

Sheet Hardness Based Metals Criteria
A1: Hardness Based Metals Criteria Calculator for Freshwaters | K1: (Developed by Garry Payne Sept. 2016)
A2: To use: 1) Press "Clear Entries" button on right to remove all old data entries. 2) Enter either the measured hardness in mg/L CaCO3 or the Ca and Mg concentrations in mg/L and the hardness will be calculated for you. (Note: For the purpose of calculation of metals criteria, samples with hardness levels <25 mg/L, a hardness of 25 mg/L will be used to calculate the criteria. For samples with a hardness of >400 mg/L, a hardness of 400 mg/L will be used to calculate the criteria.) 3) Once the necessary information is entered the applicable criteria will be shown in Columns F - K (shaded blue).
A3: Cells in Columns A - D (Unshaded) are for data entry. Additional notes are embedded as comments in the heading for each column, please review!
A4: Cells in Column E (shaded Green) and Columns F-K (shaded Blue) are results fields and are protected from change. Do Not Attempt to Change These Fields!
A5: Sample ID | B5: Total Hardness, mg/L as CaCO3 | C5: Ca, mg/L | D5: Mg, mg/L | E5: Final Total Hardness, mg/L | F5: FAC 62-302(530) Criteria for Class I, Class III and Class III-Limited Freshwaters
F6: Cadmium (Cd), µg/L | G6: Chromium III [Cr(III)], µg/L | H6: Copper (Cu), µg/L | I6: Lead (Pb), µg/L | J6: Nickel (Ni), µg/L | K6: Zinc (Zn), µg/L
A7: 1 | B7: 145 | E7: =IF(AND(ISBLANK(B7),ISBLANK(C7),ISBLANK(D7)),"",IF(AND(ISBLANK(B7),OR(ISBLANK(C7),ISBLANK(D7))),"Enter both Ca and Mg",IF(ISBLANK(B7),IF((2.497*C7)+(4.118*D7) <25,25,IF((2.497*C7)+(4.118*D7) >400,400,ROUND((2.497*C7)+(4.118*D7),2))),IF(B7<25,25,IF(B7>400,400,ROUND(B7,2)))))) -> 145 | F7: =IF(ISNUMBER($E7),EXP((0.7409*(LN($E7)))-4.719),"") -> 0.356387032 | G7: =IF(ISNUMBER($E7),EXP((0.819*(LN($E7)))+0.6848),"") -> 116.8329264 | H7: =IF(ISNUMBER($E7),EXP((0.8545*(LN($E7)))-1.702),"") -> 12.81503361 | I7: =IF(ISNUMBER($E7),EXP((1.273*(LN($E7)))-4.705),"") -> 5.105825047 | J7: =IF(ISNUMBER($E7),EXP((0.846*(LN($E7)))+0.0584),"") -> 71.42991406 | K7: =IF(ISNUMBER($E7),EXP((0.8473*(LN($E7)))+0.884),"") -> 164.1509613
A8: 2 | C8: 67 | D8: 48 | E8: =IF(AND(ISBLANK(B8),ISBLANK(C8),ISBLANK(D8)),"",IF(AND(ISBLANK(B8),OR(ISBLANK(C8),ISBLANK(D8))),"Enter both Ca and Mg",IF(ISBLANK(B8),IF((2.497*C8)+(4.118*D8) <25,25,IF((2.497*C8)+(4.118*D8) >400,400,ROUND((2.497*C8)+(4.118*D8),2))),IF(B8<25,25,IF(B8>400,400,ROUND(B8,2)))))) -> 364.96 | F8: =IF(ISNUMBER($E8),EXP((0.7409*(LN($E8)))-4.719),"") -> 0.7062067413 | G8: =IF(ISNUMBER($E8),EXP((0.819*(LN($E8)))+0.6848),"") -> 248.8191119 | H8: =IF(ISNUMBER($E8),EXP((0.8545*(LN($E8)))-1.702),"") -> 28.20131589 | I8: =IF(ISNUMBER($E8),EXP((1.273*(LN($E8)))-4.705),"") -> 16.53418104 | J8: =IF(ISNUMBER($E8),EXP((0.846*(LN($E8)))+0.0584),"") -> 155.9632564 | K8: =IF(ISNUMBER($E8),EXP((0.8473*(LN($E8)))+0.884),"") -> 358.8448663
A9: 3 | E9: =IF(AND(ISBLANK(B9),ISBLANK(C9),ISBLANK(D9)),"",IF(AND(ISBLANK(B9),OR(ISBLANK(C9),ISBLANK(D9))),"Enter both Ca and Mg",IF(ISBLANK(B9),IF((2.497*C9)+(4.118*D9) <25,25,IF((2.497*C9)+(4.118*D9) >400,400,ROUND((2.497*C9)+(4.118*D9),2))),IF(B9<25,25,IF(B9>400,400,ROUND(B9,2)))))) -> 
A10: 4
A11: 5
A12: 6
A13: 7
A14: 8
A15: 9
A16: 10
A17: 11
A18: 12
A19: 13
A20: 14
A21: 15
A22: 16
A23: 17
A24: 18
A25: 19
A26: 20
A27: 21
A28: 22
A29: 23
A30: 24
A31: 25
A32: 26
A33: 27
A34: 28
A35: 29
A36: 30
A37: 31
A38: 32
A39: 33
A40: 34
A41: 35
A42: 36
A43: 37
A44: 38
A45: 39
A46: 40
A47: 41
A48: 42
A49: 43
A50: 44
A51: 45
A52: 46
A53: 47
A54: 48
A55: 49
A56: 50
A57: 51
A58: 52
A59: 53
A60: 54
A61: 55
A62: 56
A63: 57
A64: 58
A65: 59
A66: 60
A67: 61
A68: 62
A69: 63
A70: 64
A71: 65
A72: 66 | F72: =IF(ISNUMBER($E72),EXP((0.7409*(LN($E72)))-4.719),"") ->  | G72: =IF(ISNUMBER($E72),EXP((0.819*(LN($E72)))+0.6848),"") ->  | H72: =IF(ISNUMBER($E72),EXP((0.8545*(LN($E72)))-1.702),"") ->  | I72: =IF(ISNUMBER($E72),EXP((1.273*(LN($E72)))-4.705),"") ->  | J72: =IF(ISNUMBER($E72),EXP((0.846*(LN($E72)))+0.0584),"") ->  | K72: =IF(ISNUMBER($E72),EXP((0.8473*(LN($E72)))+0.884),"") -> 
A73: 67 | E73: =IF(AND(ISBLANK(B73),ISBLANK(C73),ISBLANK(D73)),"",IF(AND(ISBLANK(B73),OR(ISBLANK(C73),ISBLANK(D73))),"Enter both Ca and Mg",IF(ISBLANK(B73),IF((2.497*C73)+(4.118*D73) <25,25,IF((2.497*C73)+(4.118*D73) >400,400,ROUND((2.497*C73)+(4.118*D73),2))),IF(B73<25,25,IF(B73>400,400,ROUND(B73,2)))))) -> 
A74: 68
A75: 69
A76: 70
A77: 71
A78: 72
A79: 73
A80: 74
A81: 75
A82: 76
A83: 77
A84: 78
A85: 79
A86: 80
A87: 81
A88: 82
A89: 83
A90: 84
A91: 85
A92: 86
A93: 87
A94: 88
A95: 89
A96: 90
A97: 91
A98: 92
A99: 93
A100: 94
A101: 95
A102: 96
A103: 97
A104: 98
A105: 99
A106: 100
